bitfinex/quotes_SOLUSD_20250317
["timestamp","ask_amount","ask_price","bid_price","bid_amount"]
[1742198288043,26.665772,129.34,129.29,0.0001]
[1742198288044,23.39367328,129.33,129.29,0.0001]
[1742198288542,23.39367328,129.33,129.29,15.4797]
[1742198288861,23.39367328,129.34,129.29,15.4797]
[1742198289036,23.39367328,129.34,129.29,38.87337328]
[1742198290637,31.12547328,129.34,129.29,15.4797]
[1742198291167,23.39367328,129.33,129.29,15.4797]
[1742198292766,0.03,129.34,129.29,38.87337328]
[1742198292965,20.03,129.34,129.3,23.39367328]
[1742198293173,20.0,129.33,129.3,23.39367328]
[1742198293774,0.03,129.34,129.3,23.39367328]
[1742198293979,0.03,129.34,129.31,23.39367328]
[1742198294774,0.03,129.34,129.33,23.39367328]
[1742198296971,0.03,129.34,129.33,31.12577328]
[1742198297571,0.03,129.34,129.33,23.39367328]
[1742198298273,0.03,129.34,129.33,31.12577328]
[1742198300671,0.03,129.34,129.33,32.76767328]
[1742198301171,0.03,129.34,129.33,24.31889414]
[1742198303565,0.03,129.34,129.33,336.31889414]
[1742198304476,0.03,129.34,129.33,24.31889414]
[1742198308574,0.03,129.34,129.33,43.11070457]
[1742198311384,0.03,129.34,129.33,28.16581043]
[1742198311565,0.03,129.34,129.33,43.11070457]
[1742198312394,0.03,129.34,129.33,49.19800457]
[1742198313567,0.03,129.35,129.34,18.79181043]
[1742198313776,0.03,129.35,129.34,33.73670457]
[1742198315585,0.03,129.35,129.34,41.46820457]
[1742198319087,0.03,129.35,129.34,41.61036614]
[1742198319584,0.0001,129.35,129.34,41.61036614]
[1742198322480,0.0001,129.35,129.34,41.46820457]
[1742198322687,0.0001,129.35,129.34,14.94489414]
[1742198324573,0.0001,129.35,129.33,14.94489414]
[1742198325087,0.0001,129.35,129.32,14.94489414]
[1742198326092,0.0001,129.35,129.33,14.94489414]
[1742198328070,0.0001,129.35,129.32,14.94489414]
[1742198330373,0.0001,129.35,129.32,22.67749414]
[1742198331672,0.0001,129.35,129.32,14.94489414]
[1742198339306,0.0001,129.35,129.32,22.67759414]
[1742198340502,0.0001,129.35,129.34,14.94489414]
[1742198341086,0.0001,129.35,129.34,33.87886614]
[1742198341496,0.03,129.39,129.35,0.14216157]
[1742198341697,0.03,129.39,129.38,14.94489414]
[1742198342391,0.03,129.39,129.38,22.67399414]
[1742198352212,11.73059414,129.44,129.38,22.67399414]
[1742198354518,14.94489414,129.43,129.38,22.67399414]
[1742198355316,22.67119414,129.43,129.38,22.67399414]
[1742198355521,7.911,129.45,129.41,14.94489414]
[1742198355738,22.85589414,129.45,129.41,14.94489414]
[1742198355894,0.03,129.45,129.44,14.94489414]
[1742198356915,0.03,129.45,129.44,41.46220457]
[1742198359009,0.03,129.45,129.44,41.46220457]
[1742198360608,0.03,129.45,129.44,41.60436614]
[1742198361716,0.03,129.45,129.44,41.46220457]
[1742198368827,0.03,129.45,129.44,14.94489414]
[1742198369710,0.03,129.45,129.44,22.67039414]
[1742198370431,0.03,129.45,129.44,41.46220457]
[1742198370935,3.7,129.47,129.46,0.28432314]
[1742198371117,0.03,129.48,129.47,18.79181043]
[1742198371310,0.03,129.48,129.47,114.53670457]
[1742198371515,0.03,129.48,129.47,426.53670457]
[1742198372429,0.03,129.53,129.47,426.53670457]
[1742198372430,0.03,129.53,129.51,18.79181043]
[1742198372633,0.03,129.53,129.51,40.43670457]
[1742198372933,0.03,129.53,129.51,48.15810457]
[1742198374430,0.03,129.53,129.51,129.10026614]
[1742198377638,0.03,129.53,129.51,441.10026614]
[1742198378027,0.03,129.53,129.51,128.95810457]
[1742198380940,0.03,129.53,129.51,21.64489414]
[1742198385232,0.03,129.52,129.51,48.15810457]
[1742198385632,0.03,129.52,129.48,14.94489414]
[1742198385847,14.97489414,129.52,129.47,21.64489414]
[1742198386945,14.97489414,129.52,129.48,7.7232]
[1742198387244,22.69579414,129.52,129.47,29.36839414]
[1742198388546,14.94489414,129.51,129.47,29.36839414]
[1742198389227,14.94489414,129.51,129.47,14.4235]
[1742198389429,0.03,129.52,129.48,14.94489414]
[1742198389635,0.03,129.52,129.47,14.4235]
[1742198389949,0.03,129.52,129.48,14.94489414]
[1742198390329,0.03,129.52,129.5,14.94489414]
[1742198390541,0.03,129.52,129.5,22.66679414]
[1742198391834,0.03,129.52,129.49,7.7226]
[1742198392029,15.92239414,129.53,129.49,7.7226]
[1742198393046,23.64269414,129.53,129.48,26.51471043]
[1742198393273,23.64269414,129.53,129.48,41.45960457]
[1742198393453,14.94489414,129.52,129.47,29.36839414]
[1742198393754,14.94489414,129.51,129.47,29.36839414]
[1742198394245,22.66619414,129.52,129.47,22.66839414]
[1742198394844,14.94489414,129.51,129.47,7.7235]
[1742198395352,14.94489414,129.52,129.47,14.94489414]
[1742198395536,14.94489414,129.52,129.48,14.94489414]
[1742198396733,22.66579414,129.52,129.47,14.94489414]
[1742198397650,22.66579414,129.52,129.47,22.66819414]
[1742198399155,23.64279414,129.53,129.48,14.94489414]
[1742198399330,15.92239414,129.53,129.48,14.94489414]
[1742198399536,0.9775,129.53,129.49,14.94489414]
[1742198399938,0.9775,129.53,129.5,14.94489414]
[1742198400261,0.9775,129.53,129.51,14.94489414]
[1742198400552,0.9775,129.53,129.49,18.79181043]
[1742198400773,0.9775,129.53,129.5,14.94489414]
[1742198400936,0.9775,129.53,129.49,33.594543]
[1742198401136,0.9775,129.53,129.5,14.94489414]
[1742198401338,0.03,129.52,129.51,7.7214]
[1742198404767,0.03,129.52,129.5,22.66659414]
[1742198404939,0.03,129.52,129.49,22.66719414]
[1742198405264,14.97489414,129.52,129.47,103.53149414]
[1742198405434,22.66659414,129.51,129.47,0.063]
[1742198405639,16.57709414,129.48,129.47,0.063]
[1742198407736,24.30029414,129.48,129.47,0.063]
[1742198410865,16.57709414,129.48,129.47,0.063]
[1742198411263,24.30029414,129.48,129.47,0.063]
[1742198411971,84.0798707,129.48,129.47,0.063]
[1742198412151,16.57709414,129.48,129.47,0.063]
[1742198412872,24.30029414,129.48,129.47,0.063]
[1742198413265,84.0798707,129.48,129.47,0.063]
[1742198413772,14.94489414,129.45,129.44,0.063]
[1742198414162,22.66979414,129.45,129.44,0.063]
[1742198414780,7.7239,129.47,129.44,0.063]
[1742198415077,22.66879414,129.47,129.44,0.063]
[1742198415277,14.94489414,129.47,129.44,0.063]
[1742198415454,16.57709414,129.48,129.44,0.063]
[1742198415654,1.6322,129.48,129.44,15.00789414]
[1742198416375,1.6322,129.48,129.45,7.7249]
[1742198416870,1.6322,129.48,129.45,22.66979414]
[1742198417263,1.6322,129.48,129.45,31.03969326]
[1742198420983,1.6322,129.48,129.45,7.7249]
[1742198424766,24.91599326,129.51,129.46,23.31479326]
[1742198425481,32.63739326,129.51,129.46,23.31479326]
[1742198426260,24.91599326,129.51,129.46,23.31479326]
[1742198426461,0.03,129.5,129.47,7.7237]
[1742198427590,0.03,129.5,129.46,31.03889326]
[1742198427760,23.34479326,129.5,129.46,7.7241]
[1742198430089,23.31479326,129.49,129.44,23.37779326]
[1742198430267,23.31479326,129.48,129.44,0.063]
[1742198430584,23.31479326,129.49,129.44,0.063]
[1742198430805,23.31479326,129.49,129.44,23.37779326]
[1742198431384,31.03769326,129.49,129.44,31.10309326]
[1742198431791,23.31479326,129.48,129.44,7.7883]
[1742198432296,23.31479326,129.48,129.44,0.063]
[1742198432470,23.31479326,129.45,129.44,0.063]
[1742198433064,27.0294,129.49,129.44,23.37779326]
[1742198433065,20.0,129.49,129.44,23.37779326]
[1742198433271,0.03,129.5,129.45,23.31479326]
[1742198433576,0.03,129.5,129.46,7.7243]
[1742198435575,0.03,129.5,129.46,23.31479326]
[1742198437595,0.03,129.5,129.47,7.7237]
[1742198438892,0.03,129.5,129.49,23.31479326]
[1742198439276,0.03,129.5,129.49,42.10660369]
[1742198439478,0.03,129.5,129.49,42.24876526]
[1742198439682,0.03,129.52,129.5,0.14216157]
[1742198439884,0.03,129.52,129.51,48.94876526]
[1742198440100,0.03,129.52,129.51,50.55176526]
[1742198440813,0.03,129.52,129.51,58.27316526]
[1742198441275,0.03,129.52,129.51,58.13100369]
[1742198441593,0.03,129.52,129.51,370.13100369]
[1742198443308,0.03,129.52,129.51,370.27316526]
[1742198443506,0.0001,129.52,129.51,457.45406526]
[1742198443791,0.0001,129.53,129.52,18.933972]
[1742198443982,0.03,129.55,129.54,38.933972]
[1742198444186,0.03,129.55,129.54,86.72081093]
[1742198444379,0.03,129.55,129.54,94.44041093]
[1742198444776,0.03,129.56,129.54,175.24041093]
[1742198444977,0.03,129.58,129.55,48.94876526]
[1742198445201,0.03,129.58,129.57,23.45695483]
[1742198446798,0.03,129.58,129.57,31.17475483]
[1742198447003,0.03,129.58,129.57,343.17475483]
[1742198448904,0.03,129.58,129.57,138.75516526]
[1742198449104,0.03,129.58,129.57,139.91205705]
[1742198451282,0.03,129.58,129.57,137.46656526]
[1742198452394,0.03,129.58,129.57,114.151772]
[1742198452600,0.03,129.58,129.57,137.46656526]
[1742198452997,0.03,129.58,129.57,138.62373617]
[1742198460413,0.03,129.58,129.57,115.30894291]
[1742198460610,0.03,129.58,129.57,138.62373617]
[1742198460827,0.03,129.58,129.57,137.46656526]
[1742198463611,0.03,129.58,129.57,137.32440369]
[1742198463824,0.03,129.58,129.57,80.8]
[1742198464327,0.03,129.58,129.56,23.37779326]
[1742198465507,0.03,129.58,129.56,0.063]
[1742198467021,0.03,129.58,129.56,23.37779326]
[1742198468505,0.03,129.58,129.56,0.063]
[1742198469629,0.03,129.58,129.56,0.063]
[1742198472023,31.23629326,129.57,129.56,0.063]
[1742198473627,38.95409326,129.57,129.56,0.063]
[1742198477031,31.23629326,129.57,129.56,0.063]
[1742198477614,7.9215,129.57,129.56,0.063]
[1742198478733,31.23629326,129.57,129.56,0.063]
[1742198481615,0.03,129.58,129.56,0.063]
[1742198482825,0.03,129.58,129.56,7.7814]
[1742198485042,0.03,129.58,129.56,0.063]
[1742198490645,0.03,129.58,129.56,23.37779326]
[1742198491136,0.03,129.58,129.57,7.7178]
[1742198491844,0.03,129.58,129.56,0.063]
[1742198492029,14.89493141,129.57,129.56,0.063]
[1742198492928,15.03709298,129.57,129.56,0.063]
[1742198493132,22.75489298,129.57,129.56,0.063]
[1742198495142,31.16059672,129.57,129.56,0.063]
[1742198496144,49.81024558,129.57,129.56,0.063]
[1742198497146,49.95240715,129.57,129.56,0.063]
[1742198498253,23.30063515,129.5,129.46,7.7241]
[1742198500433,23.30063515,129.51,129.46,31.02473515]
[1742198500842,23.30063515,129.5,129.46,7.7241]
[1742198501024,23.30063515,129.5,129.46,31.02473515]
[1742198503049,23.30063515,129.51,129.46,31.02473515]
[1742198504134,23.30063515,129.51,129.46,23.30063515]
[1742198504135,23.30063515,129.5,129.46,23.30063515]
[1742198504336,23.30063515,129.49,129.44,23.36363515]
[1742198504641,23.30063515,129.49,129.44,31.08883515]
[1742198505031,23.30063515,129.48,129.44,0.063]
[1742198505248,23.30063515,129.46,129.44,0.063]
[1742198506347,23.30063515,129.45,129.44,0.063]
[1742198507855,31.02553515,129.46,129.44,0.063]
[1742198508151,23.30063515,129.46,129.44,0.063]
[1742198509035,23.30063515,129.47,129.44,0.063]
[1742198509360,24.91533515,129.48,129.44,0.063]
[1742198509856,32.63853515,129.48,129.44,0.063]
[1742198510154,23.30063515,129.47,129.44,0.063]
[1742198511335,31.02443515,129.47,129.44,0.063]
[1742198514066,32.63873515,129.48,129.44,0.063]
[1742198515676,31.02403515,129.48,129.44,0.063]
[1742198516572,23.30063515,129.48,129.44,0.063]
[1742198517141,14.92616352,129.48,129.44,0.063]
[1742198517474,14.92616352,129.47,129.44,0.063]
[1742198519777,22.65006352,129.47,129.44,0.063]
[1742198521884,14.92616352,129.46,129.44,0.063]
[1742198522067,14.92616352,129.45,129.44,0.063]
[1742198523277,22.65106352,129.45,129.44,0.063]
[1742198525173,22.79322509,129.45,129.44,0.063]
[1742198525371,41.44287395,129.45,129.44,0.063]
[1742198528673,0.28432314,129.44,129.43,0.063]
[1742198528875,15.21048666,129.44,129.43,0.063]
[1742198530177,22.93598666,129.44,129.43,0.063]
[1742198530476,41.44347395,129.44,129.43,0.063]
[1742198531559,45.5468404,129.44,129.43,0.0001]
[1742198533576,87.9468404,129.44,129.43,0.0001]
[1742198535582,111.1668404,129.44,129.43,0.0001]
[1742198535779,0.28432314,129.42,129.35,6.0018]
[1742198535959,14.92616352,129.39,129.35,6.0018]
[1742198536394,14.92616352,129.39,129.35,28.65886352]
[1742198536564,14.92616352,129.39,129.35,20.92796352]
[1742198536877,14.92616352,129.38,129.34,0.063]
[1742198537581,22.65576352,129.38,129.34,0.063]
[1742198537764,7.7296,129.38,129.34,14.98916352]
[1742198537964,22.65496352,129.39,129.34,14.98916352]
[1742198539171,14.92616352,129.38,129.34,0.063]
[1742198539688,14.92616352,129.36,129.34,0.063]
[1742198540363,14.92616352,129.35,129.34,0.063]
[1742198542082,22.65676352,129.36,129.34,0.063]
[1742198542467,14.92616352,129.35,129.34,0.063]
[1742198542868,7.7306,129.36,129.34,0.063]
[1742198543079,14.92616352,129.35,129.34,0.063]
[1742198543489,14.92616352,129.38,129.34,0.063]
[1742198544590,14.92616352,129.38,129.34,7.7945]
[1742198545570,14.92616352,129.39,129.34,22.72066352]
[1742198545987,14.92616352,129.39,129.35,14.92616352]
[1742198546292,14.92616352,129.39,129.34,22.72066352]
[1742198546897,14.92616352,129.38,129.34,7.7945]
[1742198547502,14.92616352,129.38,129.34,22.72066352]
[1742198548001,14.92616352,129.37,129.34,0.063]
[1742198549285,14.92616352,129.38,129.34,7.7945]
[1742198550482,22.65536352,129.38,129.34,0.063]
[1742198550792,14.92616352,129.37,129.34,0.063]
[1742198553401,22.65586352,129.37,129.34,0.063]
[1742198553897,14.92616352,129.36,129.34,0.063]
[1742198554099,22.65686352,129.36,129.34,0.063]
[1742198554397,14.92616352,129.35,129.34,0.063]
[1742198554695,15.06832509,129.35,129.34,0.063]
[1742198556203,22.79922509,129.35,129.34,0.063]
[1742198557399,41.44887395,129.35,129.34,0.063]
[1742198557996,47.47930491,129.35,129.34,0.063]
[1742198558499,41.44887395,129.35,129.34,0.063]
[1742198559082,22.79922509,129.35,129.34,0.063]
[1742198560078,41.59103552,129.35,129.34,0.063]
[1742198560692,41.59103552,129.35,129.34,0.0001]
[1742198565927,83.99103552,129.35,129.34,0.0001]
[1742198567910,0.28432314,129.33,129.32,0.0001]
[1742198568114,21.93048666,129.33,129.32,0.0001]
[1742198568426,0.14216157,129.32,129.31,0.0001]
[1742198568589,83.85067395,129.32,129.31,0.0001]
[1742198571298,83.99283552,129.32,129.31,0.0001]
[1742198571797,41.59283552,129.32,129.31,0.0001]
[1742198574329,61.19181043,129.31,129.3,0.0001]
[1742198574539,91.04413747,129.31,129.3,0.0001]
[1742198574714,83.85127395,129.31,129.3,0.0001]
[1742198581738,71.92162509,129.31,129.3,0.0001]
[1742198583438,29.52162509,129.31,129.3,0.0001]
[1742198584512,48.17127395,129.31,129.3,0.0001]
[1742198587043,48.31343552,129.31,129.3,0.0001]
[1742198590339,48.17127395,129.31,129.3,0.0001]
[1742198594432,29.52162509,129.31,129.3,0.0001]
[1742198594947,46.29573836,129.32,129.3,0.0001]
[1742198594948,50.133,129.32,129.3,0.0001]
[1742198595148,14.92616352,129.31,129.3,0.0001]
[1742198596232,22.65946352,129.31,129.3,0.0001]
[1742198596857,41.45127395,129.31,129.3,0.0001]
[1742198599853,41.59343552,129.31,129.3,0.0001]
[1742198600163,18.79181043,129.3,129.29,0.0001]
[1742198600458,135.82262803,129.3,129.29,0.0001]
[1742198600761,76.11797395,129.3,129.29,0.0001]
[1742198602159,143.6986896,129.3,129.29,0.0001]
[1742198605869,83.85187395,129.3,129.29,0.0001]
[1742198606244,44.8366,129.25,129.21,0.063]
[1742198606553,34.92616352,129.22,129.21,0.063]
[1742198607059,14.92616352,129.23,129.21,0.063]
[1742198607759,21.64616352,129.24,129.21,0.063]
[1742198608261,29.38416352,129.24,129.21,0.063]
[1742198609061,22.66416352,129.24,129.21,0.063]
[1742198609749,14.92616352,129.23,129.21,0.063]
[1742198610455,7.7387,129.22,129.21,0.063]
[1742198611359,22.66486352,129.22,129.21,0.063]
[1742198612549,22.80702509,129.22,129.21,0.063]
[1742198615365,15.06832509,129.24,129.21,0.063]
[1742198615864,14.92616352,129.24,129.21,0.063]
[1742198617558,22.66376352,129.24,129.21,0.063]
[1742198620066,14.92616352,129.22,129.21,0.063]
[1742198621073,15.06832509,129.23,129.21,0.063]
[1742198621765,14.92616352,129.23,129.21,0.063]
[1742198621973,22.66376352,129.24,129.21,0.063]
[1742198622364,14.92616352,129.23,129.21,0.063]
[1742198623151,22.80542509,129.25,129.21,0.063]
[1742198625176,14.92616352,129.24,129.21,0.063]
[1742198625866,14.92616352,129.22,129.21,0.063]
[1742198626971,22.66486352,129.22,129.21,0.063]
[1742198627178,22.66456352,129.23,129.21,0.063]
[1742198628059,15.06832509,129.24,129.21,0.063]
[1742198629175,22.80592509,129.24,129.21,0.063]
[1742198629386,14.92616352,129.24,129.21,0.063]
[1742198629679,22.66336352,129.25,129.21,0.063]
[1742198631685,7.7372,129.25,129.21,14.98916352]
[1742198632865,22.66336352,129.25,129.21,0.063]
[1742198639398,7.7672,129.25,129.21,0.063]
[1742198639699,0.03,129.25,129.22,14.92616352]
[1742198640415,0.03,129.25,129.24,14.92616352]
[1742198640579,0.03,129.25,129.22,7.9659]
[1742198640778,0.03,129.25,129.24,14.92616352]
[1742198641011,0.03,129.25,129.24,22.66366352]
[1742198641340,0.03,129.25,129.24,14.92616352]
[1742198641530,0.03,129.25,129.22,22.89206352]
[1742198641717,0.03,129.25,129.22,7.9659]
[1742198641919,0.03,129.25,129.22,22.89206352]
[1742198643741,0.03,129.25,129.22,7.9659]
[1742198643937,0.03,129.25,129.22,16.49986352]
[1742198648237,0.03,129.25,129.23,14.92616352]
[1742198654652,0.03,129.25,129.22,16.49986352]
[1742198655653,0.03,129.25,129.22,1.5737]
[1742198655953,14.95616352,129.25,129.21,0.063]
[1742198657764,22.69356352,129.25,129.21,0.063]
[1742198658853,0.14216157,129.24,129.21,0.063]
[1742198659065,14.92616352,129.23,129.21,0.063]
[1742198660437,15.06832509,129.24,129.21,0.063]
[1742198660632,22.69356352,129.25,129.21,0.063]
[1742198660839,7.7674,129.25,129.21,14.98916352]
[1742198661557,7.7674,129.25,129.21,0.063]
[1742198661558,22.69356352,129.25,129.21,0.063]
[1742198662160,15.06832509,129.24,129.21,0.063]
[1742198662749,14.92616352,129.23,129.21,0.063]
[1742198663257,42.80702509,129.22,129.21,0.063]
[1742198663841,27.88086157,129.22,129.21,0.063]
[1742198664559,42.94918666,129.22,129.21,0.063]
[1742198664861,41.59883552,129.22,129.21,0.063]
[1742198665963,15.06832509,129.22,129.21,0.063]
[1742198666552,22.80702509,129.22,129.21,0.063]
[1742198668753,15.06832509,129.22,129.21,0.063]
[1742198668957,0.14216157,129.22,129.21,0.063]
[1742198669739,15.06832509,129.22,129.21,0.063]
[1742198669942,21.64616352,129.23,129.21,0.063]
[1742198671369,99.48013552,129.22,129.2,0.063]
[1742198671664,20.28432314,129.18,129.17,0.063]
[1742198671867,29.67158666,129.18,129.17,0.063]
[1742198673766,14.74542314,129.18,129.17,0.063]
[1742198673978,29.67158666,129.18,129.17,0.063]
[1742198674146,0.14216157,129.14,129.1,0.063]
[1742198674349,20.14216157,129.14,129.1,0.063]
[1742198674542,14.4611,129.18,129.1,18.71264886]
[1742198674864,22.66726352,129.18,129.13,14.92616352]
[1742198675040,7.7411,129.18,129.13,14.92616352]
[1742198675246,22.66726352,129.18,129.13,14.92616352]
[1742198675460,22.66726352,129.18,129.12,14.92616352]
[1742198675842,22.66726352,129.18,129.13,14.92616352]
[1742198676047,7.7411,129.18,129.14,14.92616352]
[1742198676363,212.5,129.2,129.15,14.92616352]
[1742198677151,227.42616352,129.2,129.15,14.92616352]
[1742198678771,212.5,129.2,129.15,14.92616352]
[1742198679379,212.5,129.2,129.16,14.92616352]
[1742198680090,212.5,129.2,129.14,7.7432]
[1742198680391,212.5,129.2,129.15,14.92616352]
[1742198680781,212.5,129.2,129.16,14.92616352]
[1742198681683,50.1685,129.23,129.14,1.5104]
[1742198681879,0.14216157,129.2,129.16,14.92616352]
[1742198682076,0.14216157,129.2,129.15,14.92616352]
[1742198682488,0.14216157,129.2,129.16,14.92616352]
[1742198683498,7.88256157,129.2,129.16,14.92616352]
[1742198688307,0.14216157,129.2,129.16,22.66846352]
[1742198688529,7.7395,129.21,129.17,14.92616352]
[1742198688692,0.28432314,129.22,129.19,14.92616352]
[1742198688886,0.03,129.23,129.21,14.92616352]
[1742198689090,0.14216157,129.21,129.11,1.6439]
[1742198689293,20.0,129.2,129.16,1.6439]
[1742198689619,0.03,129.23,129.16,1.6439]
[1742198690014,20.03,129.23,129.16,1.6439]
[1742198690408,20.03,129.23,129.18,18.64964886]
[1742198690608,20.03,129.23,129.22,14.92616352]
[1742198693723,20.03,129.23,129.22,14.92616352]
[1742198695701,20.03,129.23,129.2,7.7396]
[1742198695923,20.03,129.23,129.22,14.92616352]
[1742198696218,20.03,129.23,129.21,14.92616352]
[1742198701015,20.03,129.23,129.22,14.92616352]
[1742198702738,0.03,129.23,129.22,14.92616352]
[1742198703607,0.03,129.23,129.22,22.66486352]
[1742198704433,0.03,129.23,129.22,101.01916646]
[1742198704632,0.03,129.23,129.22,41.31451238]
[1742198707419,0.03,129.23,129.22,14.92616352]
[1742198709910,0.03,129.23,129.22,22.66486352]
[1742198711639,0.03,129.23,129.22,48.05451238]
[1742198712139,0.03,129.25,129.23,18.64964886]
[1742198712310,0.03,129.25,129.24,93.28046646]
[1742198713629,0.03,129.25,129.24,101.01796646]
[1742198713834,0.03,129.31,129.3,14.92616352]
[1742198716015,0.03,129.31,129.29,14.92616352]
[1742198717536,0.03,129.31,129.27,14.92616352]
[1742198717736,16.73432509,129.31,129.27,14.92616352]
[1742198717942,16.73432509,129.31,129.26,14.92616352]
[1742198718120,14.92616352,129.3,129.25,14.92616352]
[1742198718630,20.0,129.28,129.24,14.92616352]
[1742198719036,20.0,129.28,129.22,7.7384]
[1742198719243,43.39144857,129.28,129.23,23.39144857]
[1742198719418,20.0,129.26,129.23,23.39144857]
[1742198719817,20.0,129.26,129.2,16.0243]
[1742198719818,20.0,129.26,129.22,23.39144857]
[1742198720033,43.39144857,129.26,129.21,23.39144857]
[1742198720240,21.5102,129.25,129.21,23.39144857]
[1742198720542,44.90164857,129.25,129.2,23.39144857]
[1742198720730,21.5102,129.25,129.21,23.39144857]
[1742198720931,29.2474,129.25,129.21,23.39144857]
[1742198721250,21.5102,129.25,129.22,23.39144857]
[1742198721420,29.2472,129.25,129.22,23.39144857]
[1742198722236,29.2472,129.25,129.19,18.64964886]
[1742198722440,29.2472,129.25,129.21,23.39144857]
[1742198722617,52.63864857,129.25,129.2,23.39144857]
[1742198723337,71.98094857,129.25,129.2,23.39144857]
[1742198723564,29.2472,129.25,129.21,23.39144857]
[1742198723921,29.2472,129.25,129.18,23.39144857]
[1742198723922,29.2472,129.25,129.22,23.39144857]
[1742198724120,20.0,129.24,129.19,18.64964886]
[1742198724430,1.5102,129.25,129.22,23.45444857]
[1742198724616,20.0,129.25,129.23,23.39144857]
[1742198724820,20.0,129.25,129.22,23.45444857]
[1742198725221,27.7372,129.25,129.22,23.45444857]
[1742198725843,20.0,129.25,129.22,23.45444857]
[1742198726243,27.7369,129.25,129.22,23.45444857]
[1742198726544,20.0,129.25,129.22,23.45444857]
[1742198726745,20.0,129.25,129.24,23.39144857]
[1742198727142,27.7364,129.26,129.23,23.39144857]
[1742198727441,7.736,129.27,129.23,23.39144857]
[1742198732944,7.736,129.27,129.23,31.12954857]
[1742198733144,32.63704857,129.28,129.23,31.12934857]
[1742198734247,1.5102,129.28,129.24,23.39144857]
[1742198734432,9.2454,129.28,129.24,23.39144857]
[1742198736346,9.2754,129.28,129.24,23.39144857]
[1742198738342,32.66684857,129.28,129.23,23.39144857]
[1742198738955,32.66684857,129.28,129.23,31.12944857]
[1742198739156,9.2754,129.28,129.23,22.71040262]
[1742198739465,9.2754,129.28,129.23,14.97240262]
[1742198739769,24.24780262,129.28,129.23,14.97240262]
[1742198740864,14.97240262,129.27,129.22,0.063]
[1742198741043,14.97240262,129.26,129.22,0.063]
[1742198741246,34.97240262,129.25,129.22,0.063]
[1742198742063,20.0,129.25,129.22,0.063]
[1742198742867,7.7375,129.24,129.22,0.063]
[1742198743684,14.97240262,129.23,129.22,0.063]
[1742198743851,15.11456419,129.23,129.22,0.063]
[1742198744174,16.67816419,129.23,129.22,0.063]
[1742198744582,23.54032576,129.23,129.22,0.063]
[1742198745369,31.27842576,129.23,129.22,0.063]
[1742198746266,20.0,129.2,129.16,0.063]
[1742198746450,20.0,129.19,129.16,0.063]
[1742198747275,34.97240262,129.19,129.16,0.063]
[1742198747459,7.7407,129.19,129.16,0.063]
[1742198747663,20.0,129.18,129.16,0.063]
[1742198748371,34.97240262,129.18,129.16,0.063]
[1742198749075,42.71380262,129.18,129.16,0.063]
[1742198750151,34.97240262,129.19,129.16,0.063]
[1742198750471,20.0,129.18,129.16,15.03540262]
[1742198750674,14.97240262,129.21,129.16,0.063]
[1742198750872,20.0,129.19,129.16,15.03540262]
[1742198751067,20.0,129.19,129.16,0.063]
[1742198752052,42.71300262,129.19,129.16,0.063]
[1742198753378,20.0,129.19,129.16,0.063]
[1742198753769,20.0,129.18,129.16,15.03540262]
[1742198754476,20.0,129.18,129.16,0.063]
[1742198754970,42.71320262,129.19,129.16,0.063]
[1742198755170,51.16792228,129.19,129.16,0.063]
[1742198755679,23.42712228,129.18,129.16,0.063]
[1742198756376,51.16792228,129.19,129.16,0.063]
[1742198757077,23.42712228,129.18,129.16,0.063]
[1742198758077,0.14216157,129.18,129.16,0.063]
[1742198758287,20.0,129.19,129.16,0.063]
[1742198759181,20.0,129.19,129.16,23.49012228]
[1742198759365,20.0,129.19,129.17,23.42712228]
[1742198759974,20.0,129.19,129.16,23.49012228]
[1742198760176,43.42712228,129.19,129.16,0.063]